bitfinex-derivatives/quotes_BNBF0:USTF0_20250908
["timestamp","ask_amount","ask_price","bid_price","bid_amount"]
[1757324818133,0.19850211,878.48,876.57,2.5588204]
[1757324818830,0.19850211,878.48,876.18,3.5823486]
[1757324819030,0.19850211,878.48,876.19,0.75202296]
[1757324819234,0.19850211,878.48,876.2,0.75202296]
[1757324819435,0.19850211,878.48,876.21,0.75202296]
[1757324819632,0.19850211,878.48,876.22,0.75202296]
[1757324819831,0.19850211,878.48,876.23,0.75202296]
[1757324820031,0.19850211,878.48,876.24,0.75202296]
[1757324820232,0.19850211,878.48,876.25,0.75202296]
[1757324820436,0.19850211,878.48,876.26,0.75202296]
[1757324820636,0.19850211,878.48,876.27,0.75202296]
[1757324820836,0.19850211,878.48,876.28,0.75202296]
[1757324821036,0.19850211,878.48,876.29,0.75202296]
[1757324821237,0.19850211,878.48,876.3,0.75202296]
[1757324821440,0.19850211,878.48,876.31,0.75202296]
[1757324821635,0.19850211,878.48,876.32,0.75202296]
[1757324821838,0.19850211,878.48,876.33,0.75202296]
[1757324822039,0.19850211,878.48,876.34,0.75202296]
[1757324822239,0.19850211,878.48,876.35,0.75202296]
[1757324822440,0.19850211,878.48,876.36,0.75202296]
[1757324822637,0.19850211,878.48,876.37,0.75202296]
[1757324822837,0.19850211,878.48,876.38,0.75202296]
[1757324823038,0.19850211,878.48,876.39,0.75202296]
[1757324823237,0.19850211,878.48,876.4,0.75202296]
[1757324823441,0.19850211,878.48,876.65,2.5588204]
[1757324823939,0.19850211,878.48,876.82,2.5588204]
[1757324824540,0.19850211,878.48,876.71,2.5588204]
[1757324825441,0.19850211,878.48,876.69,2.5588204]
[1757324826039,0.19850211,878.48,876.81,2.5588204]
[1757324826542,0.19850211,878.48,876.82,2.5588204]
[1757324826945,0.19850211,878.48,876.81,2.5588204]
[1757324827441,0.19850211,878.48,876.8,2.5588204]
[1757324828642,0.19850211,878.48,876.36,3.5823486]
[1757324828643,0.19850211,878.48,876.78,2.5588204]
[1757324829545,0.19850211,878.48,876.77,2.5588204]
[1757324830246,0.19850211,878.48,876.78,2.5588204]
[1757324830645,0.19850211,878.48,876.87,2.5588204]
[1757324831145,0.19850211,878.48,876.86,2.5588204]
[1757324831743,0.19850211,878.48,876.83,2.5588204]
[1757324832144,0.19850211,878.48,876.82,2.5588204]
[1757324834248,0.19850211,878.48,876.88,2.5588204]
[1757324834847,0.19850211,878.48,876.89,2.5588204]
[1757324835347,0.19850211,878.48,876.88,2.5588204]
[1757324835944,0.19850211,878.48,876.03,0.19850211]
[1757324835945,0.19850211,878.48,876.9,2.5588204]
[1757324836350,0.19850211,878.48,876.82,2.5588204]
[1757324836848,0.19850211,878.48,876.84,2.5588204]
[1757324837451,0.19850211,878.48,876.75,2.5588204]
[1757324837953,0.19850211,878.48,877.57,1.5231337]
[1757324838153,0.19850211,878.48,877.56,1.5231337]
[1757324838351,0.19850211,878.48,877.57,1.5231337]
[1757324839054,0.19850211,878.48,877.56,1.5231337]
[1757324839253,0.19850211,878.48,877.54,1.5231337]
[1757324839953,0.19850211,878.48,877.58,1.5231337]
[1757324840153,0.19850211,878.48,877.57,1.5231337]
[1757324841254,0.19850211,878.48,877.56,1.5231337]
[1757324841455,0.19850211,878.48,877.58,1.5231337]
[1757324842153,0.19850211,878.48,877.57,1.5231337]
[1757324843351,0.19850211,878.48,877.56,1.5231337]
[1757324844157,0.19850211,878.48,877.55,1.5231337]
[1757324845759,0.19850211,878.48,877.56,1.5231337]
[1757324845954,0.19850211,878.48,877.6,1.5231337]
[1757324847259,0.19850211,878.48,877.64,1.5231337]
[1757324847859,0.19850211,878.48,877.79,1.0143209]
[1757324849862,0.19850211,878.48,877.63,1.0143209]
[1757324851760,0.19850211,878.48,877.59,1.0143209]
[1757324851958,0.19850211,878.48,877.62,1.0143209]
[1757324852760,0.19850211,878.48,877.71,1.0143209]
[1757324853061,0.19850211,878.48,877.81,1.0143209]
[1757324854065,0.19850211,878.48,877.83,1.0143209]
[1757324854266,0.19850211,878.48,877.82,1.0143209]
[1757324855167,0.19850211,878.48,877.81,1.0143209]
[1757324856265,0.19850211,878.48,877.92,1.0143209]
[1757324856467,0.19850211,878.48,877.95,1.0143209]
[1757324857167,0.19850211,878.48,877.94,1.0143209]
[1757324859168,0.19850211,878.48,877.93,1.0143209]
[1757324860169,0.19850211,878.48,877.92,1.0143209]
[1757324860374,0.19850211,878.48,877.74,1.0143209]
[1757324860570,0.19850211,878.48,877.71,1.0143209]
[1757324860774,0.19850211,878.48,877.72,1.0143209]
[1757324862873,0.19850211,878.48,877.71,1.0143209]
[1757324864176,0.19850211,878.48,877.72,1.0143209]
[1757324864372,0.19850211,878.48,877.71,1.0143209]
[1757324865279,0.19850211,878.48,877.72,1.0143209]
[1757324866377,0.19850211,878.48,877.73,1.0143209]
[1757324868278,0.19850211,878.48,877.74,1.0143209]
[1757324869179,0.19850211,878.48,877.75,1.0143209]
[1757324870178,0.19850211,878.48,877.83,1.0143209]
[1757324870482,0.19850211,878.48,877.86,1.0143209]
[1757324871379,0.19850211,878.48,877.87,1.0143209]
[1757324871679,0.19850211,878.48,877.9,1.0143209]
[1757324872380,0.19850211,878.48,877.92,1.0143209]
[1757324872578,0.19850211,878.48,877.94,1.0143209]
[1757324873281,0.19850211,878.48,877.79,1.5231337]
[1757324873282,0.19850211,878.48,877.57,1.0143209]
[1757324874185,0.19850211,878.48,877.58,1.0143209]
[1757324874386,0.19850211,878.48,877.59,1.0143209]
[1757324874882,0.19850211,878.48,877.61,1.0143209]
[1757324875286,0.19850211,878.48,877.63,1.0143209]
[1757324875989,0.19850211,878.48,877.58,1.0143209]
[1757324876283,0.19850211,878.48,877.59,1.0143209]
[1757324877187,0.19850211,878.48,877.61,1.0143209]
[1757324877991,0.19850211,878.48,877.67,1.0143209]
[1757324878184,0.19850211,878.48,877.65,1.0143209]
[1757324878586,0.19850211,878.48,877.62,1.0143209]
[1757324879287,0.19850211,878.48,877.63,1.0143209]
[1757324879687,0.19850211,878.48,877.64,1.0143209]
[1757324880388,0.19850211,878.48,877.63,1.0143209]
[1757324880890,0.19850211,878.48,877.65,1.0143209]
[1757324881090,0.19850211,878.48,877.44,1.0143209]
[1757324881291,0.19850211,878.48,877.45,1.0143209]
[1757324882093,0.19850211,878.48,877.46,1.0143209]
[1757324882294,0.19850211,878.48,877.47,1.0143209]
[1757324882594,0.19850211,878.48,877.46,1.0143209]
[1757324882798,0.19850211,878.48,877.52,1.0143209]
[1757324883093,0.19850211,878.48,877.53,1.0143209]
[1757324883599,0.19850211,878.48,877.63,1.0143209]
[1757324884298,0.19850211,878.48,877.64,1.0143209]
[1757324885400,0.19850211,878.48,877.65,1.0143209]
[1757324886000,0.19850211,878.48,877.68,1.0143209]
[1757324886300,0.19850211,878.48,877.73,1.0143209]
[1757324887300,0.19850211,878.48,877.76,1.0143209]
[1757324887696,0.19850211,878.48,876.33,2.5588204]
[1757324887697,0.19850211,878.48,877.75,1.0143209]
[1757324888702,0.19850211,878.48,877.74,1.0143209]
[1757324889000,0.19850211,878.48,877.84,1.0143209]
[1757324889297,0.19850211,878.48,877.85,1.0143209]
[1757324889497,0.19850211,878.48,877.83,1.0143209]
[1757324890601,0.19850211,878.48,877.82,1.0143209]
[1757324892400,0.19850211,878.48,877.83,1.0143209]
[1757324893100,0.19850211,878.48,877.81,1.0143209]
[1757324894500,0.19850211,878.48,876.03,0.19850211]
[1757324894501,0.19850211,878.48,877.86,1.0143209]
[1757324896803,0.19850211,878.48,877.83,1.0143209]
[1757324897106,0.19850211,878.48,877.82,1.0143209]
[1757324897906,0.19850211,878.48,877.84,1.0143209]
[1757324898508,0.19850211,878.48,877.85,1.0143209]
[1757324900808,0.19850211,878.48,877.84,1.0143209]
[1757324902111,0.19850211,878.48,877.81,1.0143209]
[1757324903115,0.19850211,878.48,877.82,1.0143209]
[1757324906714,0.19850211,878.48,877.82,2.5374546]
[1757324907718,0.19850211,878.48,877.12,2.5588204]
[1757324908020,0.19850211,878.48,877.2,2.5588204]
[1757324909117,0.19850211,878.48,877.15,2.5588204]
[1757324910723,0.19850211,878.48,877.17,2.5588204]
[1757324912223,0.19850211,878.48,877.18,2.5588204]
[1757324912921,0.19850211,878.48,877.19,2.5588204]
[1757324913225,0.19850211,878.48,877.2,2.5588204]
[1757324914428,0.19850211,878.48,877.23,2.5588204]
[1757324915826,0.19850211,878.48,877.22,2.5588204]
[1757324916429,0.19850211,878.48,877.3,2.5588204]
[1757324917026,0.19850211,878.48,877.24,2.5588204]
[1757324918128,0.19850211,878.48,877.2,2.5588204]
[1757324919026,0.19850211,878.48,876.86,3.5823486]
[1757324919230,0.19850211,878.48,876.71,2.5588204]
[1757324919529,0.19850211,878.48,876.72,3.32284867]
[1757324919726,0.19850211,878.48,876.73,0.76402827]
[1757324920025,0.19850211,878.48,876.74,0.76402827]
[1757324920229,0.19850211,878.48,876.75,0.76402827]
[1757324920525,0.19850211,878.48,876.76,3.32284867]
[1757324920730,0.19850211,878.48,876.77,0.76402827]
[1757324920930,0.19850211,878.48,876.78,0.76402827]
[1757324921128,0.19850211,878.48,876.79,0.76402827]
[1757324921332,0.19850211,878.48,876.8,0.76402827]
[1757324921530,0.19850211,878.48,876.81,0.76402827]
[1757324921735,0.19850211,878.48,876.82,0.76402827]
[1757324922033,0.19850211,878.48,876.83,0.76402827]
[1757324922232,0.19850211,878.48,876.84,0.76402827]
[1757324922534,0.19850211,878.48,876.76,2.5588204]
[1757324922830,0.19850211,878.48,876.77,0.76407588]
[1757324923028,0.19850211,878.48,876.75,2.5588204]
[1757324923029,0.19850211,878.48,876.78,0.76407588]
[1757324923233,0.19850211,878.48,876.79,0.76407588]
[1757324923433,0.19850211,878.48,876.8,0.76407588]
[1757324923633,0.19850211,878.48,876.81,0.76407588]
[1757324923833,0.19850211,878.48,876.82,0.76407588]
[1757324924034,0.19850211,878.48,876.83,0.76407588]
[1757324924234,0.19850211,878.48,876.84,0.76407588]
[1757324924531,0.19850211,878.48,876.85,0.76407588]
[1757324924831,0.19850211,878.48,876.75,2.5588204]
[1757324925030,0.19850211,878.48,876.76,0.76430033]
[1757324925231,0.19850211,878.48,876.77,0.76430033]
[1757324925434,0.19850211,878.48,876.78,0.76430033]
[1757324925733,0.19850211,878.48,876.79,0.76430033]
[1757324925934,0.19850211,878.48,876.8,0.76430033]
[1757324926131,0.19850211,878.48,876.81,0.76430033]
[1757324926435,0.19850211,878.48,876.82,0.76430033]
[1757324926635,0.19850211,878.48,876.83,0.76430033]
[1757324926935,0.19850211,878.48,876.18,3.5823486]
[1757324926936,0.19850211,878.48,876.84,0.76430033]
[1757324927130,0.19850211,878.48,876.85,0.76430033]
[1757324927331,0.19850211,878.48,876.86,0.76430033]
[1757324927535,0.19850211,878.48,876.87,0.76430033]
[1757324927734,0.19850211,878.48,876.88,0.76430033]
[1757324928035,0.19850211,878.48,877.65,1.5296435]
[1757324928436,0.19850211,878.48,877.75,1.5296435]
[1757324928733,0.19850211,878.48,876.84,2.5588204]
[1757324928734,0.19850211,878.48,877.76,1.5296435]
[1757324930334,0.19850211,878.48,877.77,1.5296435]
[1757324931633,0.19850211,878.48,877.78,1.5296435]
[1757324932137,0.19850211,878.48,877.79,1.5296435]
[1757324933138,0.19850211,878.48,877.78,1.5296435]
[1757324933336,0.19850211,878.48,877.79,1.5296435]
[1757324933833,0.19850211,878.48,877.82,1.5296435]
[1757324934037,0.19850211,878.48,877.8,1.5296435]
[1757324934534,0.19850211,878.48,877.75,1.5296435]
[1757324934734,0.19850211,878.48,877.76,1.5296435]
[1757324936037,0.19850211,878.48,877.81,1.5296435]
[1757324936237,0.19850211,878.48,877.82,1.5296435]
[1757324937835,0.19850211,878.48,877.88,1.0202211]
[1757324938838,0.19850211,878.48,877.88,3.3151598]
[1757324939440,0.19850211,878.48,877.88,2.5498646]
[1757324939644,0.19850211,878.48,877.88,3.31537932]
[1757324943041,0.19850211,878.48,876.69,3.5823486]
[1757324943042,0.19850211,878.48,877.89,3.31537932]
[1757324944448,0.19850211,878.48,877.89,1.88710972]
[1757324944946,0.19850211,878.48,877.89,0.45884012]
[1757324949255,0.19850211,878.48,876.89,3.5823486]
[1757324949256,0.19850211,878.48,877.37,2.5588204]
[1757324950458,0.19850211,878.48,877.42,2.5588204]
[1757324950956,0.19850211,878.48,877.36,2.5588204]
[1757324951256,0.19850211,878.48,877.35,2.5588204]
[1757324951958,0.19850211,878.48,877.0,2.5588204]
[1757324952155,0.19850211,878.48,877.01,0.7766832]
[1757324952354,0.19850211,878.48,877.02,0.7766832]
[1757324952559,0.19850211,878.48,877.03,0.7766832]
[1757324952854,0.19850211,878.48,877.04,0.7766832]
[1757324953054,0.19850211,878.48,877.05,0.7766832]
[1757324953257,0.19850211,878.48,876.99,2.5588204]
[1757324953456,0.19850211,878.48,877.0,0.77613911]
[1757324953656,0.19850211,878.48,877.01,0.77613911]
[1757324953857,0.19850211,878.48,877.02,0.77613911]
[1757324954064,0.19850211,878.48,877.03,0.77613911]
[1757324954358,0.19850211,878.48,876.97,2.5588204]
[1757324954556,0.19850211,878.48,876.98,0.77593837]
[1757324954759,0.19850211,878.48,876.99,0.77593837]
[1757324954957,0.19850211,878.48,877.0,0.77593837]
[1757324955157,0.19850211,878.48,877.01,0.77593837]
[1757324955361,0.19850211,878.48,877.02,0.77593837]
[1757324955561,0.19850211,878.48,877.03,0.77593837]
[1757324955760,0.19850211,878.48,877.04,0.77593837]
[1757324955959,0.19850211,878.48,877.05,0.77593837]
[1757324956160,0.19850211,878.48,877.06,0.77593837]
[1757324956462,0.19850211,878.48,877.07,0.77593837]
[1757324956661,0.19850211,878.48,877.08,0.77593837]
[1757324956864,0.19850211,878.48,877.09,0.77593837]
[1757324957160,0.19850211,878.48,877.1,0.77593837]
[1757324957461,0.19850211,878.48,877.11,0.77593837]
[1757324957665,0.19850211,878.48,877.12,0.77593837]
[1757324957866,0.19850211,878.48,877.13,0.77593837]
[1757324958060,0.19850211,878.48,877.14,0.77593837]
[1757324958361,0.19850211,878.48,877.04,2.5588204]
[1757324958565,0.19850211,878.48,877.05,0.77518143]
[1757324958766,0.19850211,878.48,877.08,2.5588204]
[1757324959066,0.19850211,878.48,877.09,0.77518143]
[1757324959264,0.19850211,878.48,877.11,2.5588204]
[1757324959567,0.19850211,878.48,877.12,0.77518143]
[1757324959764,0.19850211,878.48,877.13,0.77518143]
[1757324960065,0.19850211,878.48,877.11,2.5588204]
[1757324960270,0.19850211,878.48,877.12,0.77508594]
[1757324960468,0.19850211,878.48,877.13,0.77508594]
[1757324960669,0.19850211,878.48,877.09,2.5588204]
[1757324960866,0.19850211,878.48,877.1,0.77509889]
[1757324961064,0.19850211,878.48,877.11,0.77509889]
[1757324961268,0.19850211,878.48,877.12,0.77509889]
[1757324961568,0.19850211,878.48,877.09,2.5588204]
[1757324961765,0.19850211,878.48,877.49,2.5588204]
[1757324962465,0.19850211,878.48,877.45,2.5588204]
[1757324964068,0.19850211,878.48,877.44,2.5588204]
[1757324965067,0.19850211,878.48,878.11,1.5250818]
[1757324965467,0.19850211,878.48,877.95,1.5250818]
[1757324965771,0.19850211,878.48,878.0,1.5250818]
[1757324966066,1.027835,879.58,877.93,1.5250818]
[1757324966369,0.1983635,878.37,877.93,1.5250818]
[1757324966567,0.1983635,878.37,877.92,1.5250818]
[1757324966765,1.027835,879.57,877.92,1.5250818]
[1757324967069,1.027835,879.67,877.9,1.5250818]
[1757324967564,1.027835,879.66,877.87,1.5250818]
[1757324967869,0.19837311,879.22,877.87,1.5250818]
[1757324969770,0.19837311,879.22,877.85,1.5250818]
[1757324970069,0.19837311,879.22,877.86,1.5250818]
[1757324970574,0.19837311,879.22,877.79,1.5250818]
[1757324971074,0.19837311,879.22,877.81,1.5250818]
[1757324971371,0.19837311,879.22,877.8,1.5250818]
[1757324972970,0.19837311,879.22,877.81,1.5250818]
[1757324974977,0.19837311,879.22,877.81,2.5428713]
[1757324976075,0.19837311,879.22,877.81,1.0177895]
[1757324980382,0.19837311,879.22,877.81,2.5428713]
[1757324981782,0.19837311,879.22,877.81,1.0177895]
[1757324985581,0.19837311,879.22,877.81,2.5428713]
[1757324987487,0.19837311,879.22,877.81,1.0177895]
[1757324992187,0.19837311,879.22,877.83,1.0177895]
[1757324993190,0.19837311,879.22,877.88,1.0177895]
[1757324994190,0.19837311,879.22,877.87,2.5428713]
[1757324994393,0.19837311,879.22,877.87,1.0177895]
[1757324995396,0.19837311,879.22,877.87,2.5428713]
[1757325001002,0.19837311,879.22,877.88,2.5428713]
[1757325001602,0.19837311,879.22,877.87,2.5428713]
[1757325002804,0.19837311,879.22,877.22,2.5588204]
[1757325003099,0.19837311,879.22,877.32,2.5588204]
[1757325003698,1.027835,879.2,877.27,2.5588204]
[1757325004203,1.027835,879.2,877.28,2.5588204]
[1757325004402,1.027835,879.19,877.28,2.5588204]
[1757325004606,1.027835,879.2,877.87,0.76299522]
[1757325006803,1.027835,879.19,877.87,0.76299522]
[1757325007507,1.027835,879.18,877.86,0.76299522]
[1757325009002,0.19837311,879.22,877.86,0.76299522]
[1757325018018,0.19837311,879.22,877.85,0.76299522]
[1757325019318,1.027835,879.2,877.85,0.76299522]
[1757325019614,1.027835,879.19,877.85,0.76299522]
[1757325020113,1.027835,879.18,877.85,0.76299522]
[1757325021120,1.027835,879.17,877.85,0.76299522]
[1757325021319,1.027835,879.19,877.85,0.76299522]
[1757325021517,1.027835,879.18,877.85,0.76299522]
[1757325022118,1.027835,879.21,877.85,0.76299522]
[1757325022320,1.027835,879.2,877.85,0.76299522]
[1757325022815,1.027835,879.2,877.85,2.29167972]
[1757325023318,1.027835,879.19,877.85,2.29167972]
[1757325024015,1.027835,879.19,877.85,2.29327186]
[1757325024216,1.027835,879.17,877.85,2.29327186]
[1757325024415,0.19837311,879.22,877.85,0.76458736]
[1757325025116,1.027835,879.2,877.85,2.29327186]
[1757325025520,1.027835,879.21,877.86,0.76458736]
[1757325025916,1.027835,879.21,877.86,2.29327186]
[1757325026221,0.19837311,879.22,877.86,0.76458736]
[1757325027420,1.027835,879.21,877.86,2.29327186]
[1757325030322,0.19837311,879.22,877.87,0.76458736]
[1757325031524,0.19837311,879.22,877.87,2.29327186]
[1757325032918,0.19837311,879.22,877.87,3.31413412]
[1757325039828,0.19837311,879.22,877.87,2.54954676]
[1757325040128,1.027835,879.17,877.87,1.88582785]
[1757325040434,1.027835,879.09,877.87,0.45752171]
[1757325040833,1.027835,879.06,877.87,0.45752171]
[1757325041030,1.027835,879.07,877.87,0.45752171]
[1757325041334,1.027835,879.18,877.87,0.45752171]
[1757325041532,0.19837311,879.22,876.99,2.5588204]
[1757325042031,0.19837311,879.22,877.06,2.5588204]
[1757325043734,0.19837311,879.22,877.07,2.5588204]
[1757325047836,0.19837311,879.22,877.04,2.5588204]
[1757325048233,0.19837311,879.22,877.06,2.5588204]
[1757325048737,0.19837311,879.22,877.07,2.5588204]
[1757325049734,0.19837311,879.22,877.08,2.5588204]
[1757325051235,1.027835,879.15,877.08,2.5588204]
[1757325051439,1.027835,879.15,877.29,2.5588204]
[1757325051840,1.027835,879.2,877.35,2.5588204]
[1757325053336,1.027835,879.2,877.34,2.5588204]
[1757325054039,1.027835,879.18,877.34,2.5588204]
[1757325054541,1.027835,879.18,877.39,2.5588204]
[1757325055138,1.027835,879.19,877.4,2.5588204]
[1757325055439,1.027835,879.19,877.36,2.5588204]
[1757325055938,0.19837311,879.22,877.4,2.5588204]
[1757325057341,1.027835,879.21,877.4,2.5588204]
[1757325057544,1.027835,879.21,877.47,2.5588204]
[1757325058040,1.027835,879.2,877.48,2.5588204]
[1757325058553,1.027835,879.2,877.5,2.5588204]
[1757325058841,1.027835,879.19,877.5,2.5588204]
[1757325059141,1.027835,879.2,877.5,2.5588204]
[1757325059542,1.027835,879.2,877.49,2.5588204]
[1757325060045,1.027835,879.21,877.49,2.5588204]
[1757325060244,1.027835,879.21,877.89,1.5326139]
[1757325060441,1.027835,879.21,877.47,2.5588204]
[1757325061047,1.027835,879.16,877.47,2.5588204]
[1757325061344,1.027835,879.16,877.43,2.5588204]
[1757325062143,1.027835,879.21,877.43,2.5588204]
[1757325062341,1.027835,879.21,877.49,2.5588204]
[1757325063345,1.027835,879.21,877.5,2.5588204]
[1757325064045,1.027835,879.2,877.5,2.5588204]
[1757325064243,1.027835,879.2,877.52,2.5588204]
[1757325064741,1.027835,879.2,877.51,2.5588204]
[1757325064947,1.027835,879.18,877.51,2.5588204]
[1757325065146,1.027835,879.2,877.51,2.5588204]
[1757325065441,1.027835,879.2,877.53,2.5588204]
[1757325066045,1.027835,879.16,877.53,2.5588204]
[1757325066447,1.027835,879.16,877.49,2.5588204]
[1757325068450,1.027835,879.16,877.5,2.5588204]
[1757325068749,1.027835,879.19,877.5,2.5588204]
[1757325068944,1.027835,879.18,877.43,2.5588204]
[1757325069951,1.027835,879.17,877.43,2.5588204]
[1757325070248,1.027835,879.17,877.89,1.0216561]
[1757325070447,1.027835,879.17,877.45,2.5588204]
[1757325071450,1.027835,879.14,877.45,2.5588204]
[1757325071747,1.027835,879.15,877.42,2.5588204]
[1757325072147,1.027835,879.15,877.41,2.5588204]
[1757325072351,1.027835,879.2,877.41,2.5588204]
[1757325072652,1.027835,879.2,877.46,2.5588204]
[1757325073248,0.19837311,879.22,877.46,2.5588204]
[1757325073753,0.19837311,879.22,877.12,3.5823486]
[1757325074351,0.19837311,879.22,876.89,2.5588204]
[1757325076252,0.19837311,879.22,876.91,2.5588204]
[1757325077457,0.19837311,879.22,876.9,2.5588204]
[1757325077856,0.19837311,879.22,876.85,2.5588204]
[1757325078852,0.19837311,879.22,876.86,2.5588204]
[1757325079756,0.19837311,879.22,876.87,0.72674584]
[1757325080052,0.19837311,879.22,876.54,2.5588204]
[1757325080252,0.19837311,879.22,876.55,0.72684196]
[1757325080450,0.19837311,879.22,877.66,1.5327678]
[1757325080655,0.19837311,879.22,877.65,1.5327678]
[1757325081355,0.19837311,879.22,877.64,1.5327678]
[1757325081955,0.19837311,879.22,877.63,1.5327678]
[1757325083360,0.19837311,879.22,877.64,1.5327678]
[1757325083563,0.19837311,879.22,877.63,1.5327678]
[1757325084462,0.19837311,879.22,877.65,1.5327678]
[1757325084760,0.19837311,879.22,876.38,2.5588204]
[1757325084761,0.19837311,879.22,877.55,1.5327678]
[1757325084964,0.19837311,879.22,876.43,2.5588204]
[1757325084965,0.19837311,879.22,877.56,1.5327678]
[1757325085462,0.19837311,879.22,877.55,1.5327678]
[1757325085862,0.19837311,879.22,877.56,1.5327678]
[1757325086161,0.19837311,879.22,877.54,1.5327678]
[1757325086460,0.19837311,879.22,877.55,1.5327678]
[1757325087762,0.19837311,879.22,877.54,1.5327678]
[1757325087961,0.19837311,879.22,877.55,1.5327678]
[1757325088165,0.19837311,879.22,877.59,1.5327678]
[1757325088565,0.19837311,879.22,877.58,1.5327678]
[1757325089865,0.19837311,879.22,877.56,1.5327678]
[1757325091062,0.19837311,879.22,877.55,1.5327678]
[1757325091261,0.19837311,879.22,877.54,1.5327678]
[1757325092268,0.19837311,879.22,877.53,1.5327678]
[1757325092764,0.19837311,879.22,877.55,1.5327678]
[1757325093364,0.19837311,879.22,877.56,1.5327678]
[1757325094365,0.19837311,879.22,877.57,1.5327678]
[1757325094668,0.19837311,879.22,877.67,1.5327678]
[1757325094865,0.19837311,879.22,877.7,1.5327678]
[1757325096167,0.19837311,879.22,877.71,1.5327678]
[1757325096371,0.19837311,879.22,877.7,1.5327678]
[1757325097471,0.19837311,879.22,877.73,1.5327678]
[1757325097871,0.19837311,879.22,877.74,1.5327678]
[1757325098472,0.19837311,879.22,877.78,1.5327678]
[1757325099967,0.19837311,879.22,877.78,2.29837884]
[1757325100471,0.19837311,879.22,877.78,3.31915961]
[1757325100972,1.027835,879.21,877.78,3.31915961]
[1757325101172,1.027835,879.2,877.78,3.31915961]
[1757325101371,1.027835,879.21,877.78,3.31915961]
[1757325105774,0.19837311,879.22,877.79,0.76561104]
[1757325105969,0.19837311,879.22,877.9,0.76561104]
[1757325106173,0.19837311,879.22,877.94,0.76561104]
[1757325106371,0.19837311,879.22,877.97,0.76561104]
[1757325107270,0.19837311,879.22,877.98,0.76561104]
[1757325114381,0.19837311,879.22,877.98,1.78639181]
[1757325119989,0.19837311,879.22,877.99,3.31915961]
[1757325120891,0.19837311,879.22,878.01,3.31915961]
[1757325124994,0.19837311,879.22,878.01,1.89108185]
[1757325126389,0.19837311,879.22,878.03,0.76561104]
[1757325126591,0.19837311,879.22,878.1,0.76561104]
[1757325126895,0.19837311,879.22,878.09,0.76561104]
[1757325127290,0.19837311,879.22,878.11,0.76561104]
[1757325137902,0.19837311,879.22,878.11,0.76261513]
[1757325144708,0.19837311,879.22,878.18,0.76261513]
[1757325145109,0.19837311,879.22,878.19,0.76261513]
[1757325145307,0.19837311,879.22,878.19,0.76214653]
[1757325146213,0.19837311,879.22,878.18,0.76214653]
[1757325153018,0.19837311,879.22,878.2,0.76214653]
[1757325155121,0.19837311,879.22,878.2,1.77880653]
[1757325155316,0.19837311,879.22,878.21,1.77880653]
[1757325157421,0.19837311,879.22,878.21,3.30321283]
[1757325157626,0.19837311,879.22,878.21,1.77880653]
[1757325161329,0.19837311,879.22,878.21,1.01666]
[1757325161727,0.19837311,879.22,878.14,1.5244063]
[1757325163528,0.19837311,879.22,877.31,2.5588204]
[1757325164128,0.19837311,879.22,876.9,3.5823486]
[1757325164334,0.19837311,879.22,876.91,0.75611453]
[1757325164533,0.19837311,879.22,876.92,0.75611453]
[1757325164733,0.19837311,879.22,876.93,0.75611453]
[1757325164933,0.19837311,879.22,876.94,0.75611453]
[1757325165135,0.19837311,879.22,876.95,0.75611453]
[1757325165329,0.19837311,879.22,876.96,0.75611453]
[1757325165530,0.19837311,879.22,876.97,0.75611453]
[1757325165830,0.19837311,879.22,876.98,0.75611453]
[1757325166034,0.19837311,879.22,876.99,0.75611453]
[1757325166233,0.19837311,879.22,877.0,0.75611453]
[1757325166430,0.19837311,879.22,877.01,0.75611453]
[1757325166630,0.19837311,879.22,877.02,0.75611453]
[1757325166830,0.19837311,879.22,877.03,0.75611453]
[1757325167034,0.19837311,879.22,877.04,0.75611453]
[1757325167231,0.19837311,879.22,877.05,0.75611453]
[1757325167530,0.19837311,879.22,877.06,0.75611453]
[1757325167735,0.19837311,879.22,876.61,0.19819178]
[1757325168433,0.19827761,878.57,876.64,0.7563775]
[1757325168632,0.19827761,878.57,876.61,0.19819178]
[1757325168832,0.1982121,878.09,876.66,0.7563775]
[1757325169136,0.1982121,878.09,876.61,0.19819178]
[1757325169336,0.19821098,877.94,876.68,0.7563775]
[1757325169538,0.19821098,877.94,876.69,0.7563775]
[1757325169833,0.19821098,877.94,876.61,0.19819178]
[1757325170037,0.19820928,877.94,876.71,0.7563775]
[1757325170337,0.19820928,877.94,876.61,0.19819178]
[1757325170633,0.19820815,877.94,876.73,0.7563775]
[1757325170838,0.19820815,877.94,876.61,0.19819178]
[1757325171137,0.19820702,877.94,876.75,0.7563775]
[1757325171339,0.19820702,877.94,876.61,0.19819178]
[1757325171638,0.19820589,877.94,876.77,0.7563775]
[1757325171935,0.19820589,877.94,876.78,0.7563775]
[1757325172135,0.19820589,877.94,876.79,0.7563775]
[1757325172339,0.19820589,877.94,876.8,0.7563775]
[1757325172635,0.19820589,877.94,876.81,0.7563775]
[1757325172839,0.19820589,877.94,876.82,0.7563775]
[1757325173037,0.19820589,877.94,876.83,0.7563775]
[1757325173237,0.19820589,877.94,876.84,0.7563775]
[1757325173440,0.19820589,877.94,876.85,0.7563775]
[1757325173641,0.19820589,877.94,876.86,0.7563775]